fUST/lending_fUST_20251215
["ID","MTS","AMOUNT","RATE_DAILY","PERIOD"]
[398497498,1765751445455,190.76266715,0.00013396,2]
[398497511,1765751446140,-250.0,0.00015491,2]
[398497512,1765751446150,-972.51597011,0.00015511,2]
[398497513,1765751446159,-7585.19516215,0.00016433,2]
[398497526,1765751465220,500.0,0.00013273,2]
[398497527,1765751467136,500.0,0.00013273,2]
[398497528,1765751476639,500.0,0.00013273,2]
[398497529,1765751476857,500.0,0.00013273,2]
[398497530,1765751480864,500.0,0.00013273,2]
[398497531,1765751481397,500.0,0.00013273,2]
[398497532,1765751481431,583.64,0.00013273,2]
[398497533,1765751484686,1000.0,0.00014247,2]
[398497534,1765751484744,500.0,0.00013699,2]
[398497535,1765751527051,500.0,0.00013273,2]
[398497536,1765751527193,1000.0,0.00013821,2]
[398497537,1765751527228,1500.0,0.00014368,2]
[398497538,1765751527260,606.83615881,0.00014247,2]
[398497539,1765751527286,393.16384119,0.00014247,2]
[398497540,1765751527566,500.0,0.00013699,2]
[398497541,1765751530832,500.0,0.00013273,2]
[398497542,1765751530887,500.0,0.00013273,2]
[398497543,1765751530918,500.0,0.00013699,2]
[398497544,1765751530960,1000.0,0.00014247,2]
[398497545,1765751603310,500.0,0.00013699,2]
[398497546,1765751603370,745.0979305,0.00014247,2]
[398497550,1765751645606,500.0,0.00013273,2]
[398497551,1765751645648,1000.0,0.00013821,2]
[398497552,1765751645688,1500.0,0.00014368,2]
[398497553,1765751645740,500.0,0.00013273,2]
[398497554,1765751646884,500.0,0.00013699,2]
[398497555,1765751647040,1000.0,0.00014247,2]
[398497556,1765751650018,361.74822831,0.00013699,2]
[398497557,1765751650043,138.25177169,0.00013699,2]
[398497558,1765751650100,1000.0,0.00014247,2]
[398497559,1765751709084,150.0,7.786e-05,2]
[398497561,1765751768145,500.0,0.00013273,2]
[398497562,1765751768676,500.0,0.00013273,2]
[398497563,1765751768720,1000.0,0.00013821,2]
[398497564,1765751768766,1500.0,0.00014368,2]
[398497565,1765751773572,150.0,7.77e-05,2]
[398497566,1765751773941,150.0,8.14e-05,2]
[398497567,1765751774493,500.0,0.00013699,2]
[398497568,1765751774600,1000.0,0.00014247,2]
[398497570,1765751879963,163.94,9.99e-05,2]
[398497571,1765751880225,163.93,9.99e-05,2]
[398497572,1765751886643,500.0,0.00013273,2]
[398497573,1765751886694,1000.0,0.00013821,2]
[398497574,1765751886755,1500.0,0.00014368,2]
[398497575,1765751892082,83.88822831,0.00013699,2]
[398497576,1765751892407,416.11177169,0.00013699,2]
[398497577,1765751892445,1000.0,0.00014247,2]
[398497578,1765751902195,150.0,7.76e-05,2]
[398497579,1765751902586,150.0,8.129e-05,2]
[398497580,1765751902992,150.0,8.499e-05,2]
[398497581,1765751903437,150.0,8.868e-05,2]
[398497582,1765751903836,150.0,9.238e-05,2]
[398497583,1765751904230,150.0,9.607e-05,2]
[398497584,1765751904692,167.51,9.977e-05,2]
[398497585,1765751905154,191.44,0.00010346,2]
[398497586,1765751905580,215.37,0.00010716,2]
[398497587,1765751906026,239.3,0.00011085,2]
[398497588,1765751943973,263.52857303,0.00013273,2]
[398497589,1765751971825,150.0,7.742e-05,2]
[398497590,1765752007566,500.0,0.00013273,2]
[398497591,1765752007653,312.98275168,0.00013821,2]
[398497592,1765752008317,500.0,0.00013699,2]
[398497593,1765752008847,1000.0,0.00014247,2]
[398497594,1765752010029,500.0,0.00013273,2]
[398497595,1765752012040,500.0,0.00013273,2]
[398497596,1765752012094,1000.0,0.00013821,2]
[398497597,1765752012153,1500.0,0.00014368,2]
[398497598,1765752017676,500.0,0.00013699,2]
[398497599,1765752017777,1000.0,0.00014247,2]
[398497600,1765752038049,321.5097306,0.00014515,2]
[398497601,1765752125613,1000.0,0.00014247,2]
[398497602,1765752125790,500.0,0.00013699,2]
[398497603,1765752128934,500.0,0.00013273,2]
[398497604,1765752128999,1000.0,0.00013821,2]
[398497605,1765752129039,1500.0,0.00014368,2]
[398497606,1765752133234,178.5002694,0.00013699,2]
[398497607,1765752133261,321.4997306,0.00013699,2]
[398497608,1765752133291,1000.0,0.00014247,2]
[398497610,1765752247008,500.0,0.00013699,2]
[398497611,1765752247721,1000.0,0.00014247,2]
[398497612,1765752250121,500.0,0.00013273,2]
[398497613,1765752250162,639.21612902,0.00013821,2]
[398497614,1765752253323,500.0,0.00013699,2]
[398497615,1765752253363,1000.0,0.00014247,2]
[398497616,1765752291359,150.0,7.766e-05,2]
[398497622,1765752370051,500.0,0.00013699,2]
[398497623,1765752370309,1000.0,0.00014247,2]
[398497624,1765752375981,500.0,0.00013699,2]
[398497625,1765752376035,1000.0,0.00014247,2]
[398497626,1765752489178,500.0,0.00013699,2]
[398497627,1765752489639,889.29414038,0.00014247,2]
[398497628,1765752489665,110.70585962,0.00014247,2]
[398497629,1765752493028,500.0,0.00013699,2]
[398497630,1765752493190,803.26175914,0.00014247,2]
[398497636,1765752567976,10000.01,0.00014,2]
[398497637,1765752568000,10000.01,0.00014,2]
[398497638,1765752568024,10000.01,0.00014,2]
[398497639,1765752568050,10000.01,0.00014,2]
[398497640,1765752568075,10000.01,0.00014,2]
[398497641,1765752568100,10000.01,0.00014,2]
[398497642,1765752568127,7508.4,0.00014,2]
[398497698,1765752632342,-305.137,0.00014789,2]
[398497703,1765752632377,-194.863,0.00014789,2]
[398497705,1765752632389,-240.88402442,0.0001479,2]
[398497707,1765752632398,-349.6330536,0.0001499,2]
[398497709,1765752632410,-441.31,0.0001499,2]
[398497774,1765752638510,-296.26393716,0.0001499,2]
[398497776,1765752638521,-112.79300924,0.0001499,2]
[398497778,1765752638531,-300.0,0.00014991,2]
[398497780,1765752638540,-300.0,0.00014991,2]
[398497782,1765752638550,-300.0,0.00014991,2]
[398497784,1765752638558,-300.0,0.00014991,2]
[398497786,1765752638567,-500.0,0.00014999,2]
[398497788,1765752638577,-500.0,0.00014999,2]
[398497790,1765752638586,-383.91001326,0.00014999,2]
[398497792,1765752638597,-116.08998674,0.00014999,2]
[398497794,1765752638606,-500.0,0.00014999,2]
[398497796,1765752638616,-402.71619109,0.00014999,2]
[398497798,1765752638625,-500.0,0.00014999,2]
[398497800,1765752638635,-500.0,0.00014999,2]
[398497802,1765752638644,-500.0,0.00014999,2]
[398497804,1765752638654,-500.0,0.00014999,2]
[398497806,1765752638663,-500.0,0.00014999,2]
[398497808,1765752638672,-500.0,0.00014999,2]
[398497810,1765752638681,-500.0,0.00014999,2]
[398497812,1765752638690,-594.92961863,0.00014999,2]
[398497814,1765752638699,-500.0,0.00014999,2]
[398497816,1765752638707,-500.0,0.00014999,2]
[398497818,1765752638716,-500.0,0.00014999,2]
[398497820,1765752638725,-261.38006261,0.00015,2]
[398497835,1765752638853,-4892.37058041,0.00015,2]
[398497838,1765752638865,-2068.4013083,0.00015,2]
[398497840,1765752638878,-1494.39969681,0.00015,2]
[398497842,1765752638890,-1646.08159874,0.00015,2]
[398497844,1765752638902,-6859.52870445,0.00015,2]
[398497846,1765752638911,-9794.0273736,0.00015,2]
[398497848,1765752638920,-1788.32729908,0.00015,2]
[398497850,1765752638929,-500.0,0.00015,30]
[398497852,1765752638938,-698.70272523,0.00015,30]
[398497854,1765752638947,-1001.0,0.00015044,2]
[398497855,1765752638958,-262.877506,0.00015068,2]
[398497857,1765752638967,-800.0,0.00015068,2]
[398497859,1765752638977,-184.7738857,0.0001519,2]
[398497861,1765752638986,-189.527,0.0001519,2]
[398497863,1765752638995,-500.0,0.00015208,2]
[398497865,1765752639005,-300.0,0.00015209,2]
[398497867,1765752639014,-300.0,0.00015209,2]
[398497869,1765752639023,-300.0,0.00015209,2]
[398497871,1765752639032,-300.0,0.00015209,2]
[398497873,1765752639041,-300.0,0.00015209,2]
[398497875,1765752639051,-300.0,0.00015209,2]
[398497878,1765752639060,-300.0,0.00015209,2]
[398497880,1765752639070,-300.0,0.00015209,2]
[398497881,1765752639080,-300.0,0.00015209,2]
[398497883,1765752639089,-300.0,0.00015209,2]
[398497884,1765752639098,-300.0,0.00015209,2]
[398497885,1765752639108,-300.0,0.00015209,2]
[398497886,1765752639117,-300.0,0.00015209,2]
[398497887,1765752639126,-300.0,0.00015209,2]
[398497888,1765752639136,-300.0,0.00015209,2]
[398497889,1765752639145,-321.69353828,0.00015263,2]
[398497890,1765752639154,-1564.04505435,0.00015264,2]
[398497891,1765752639166,-443.89927888,0.00015264,2]
[398497922,1765752640477,-971.9642927,0.00015264,2]
[398497923,1765752640489,-576.57381697,0.00015264,2]
[398497924,1765752640931,-804.7719191,0.00015264,2]
[398497935,1765752643391,-629.45209132,0.00015264,2]
[398497936,1765752643404,-4408.35,0.00015264,2]
[398497937,1765752643415,-5396.0609,0.00015264,2]
[398497948,1765752646249,-16089.93869529,0.00015264,2]
[398497955,1765752676566,10000.0,0.00014515,2]
[398497957,1765752688864,0.01,0.00014515,2]
[398497958,1765752688892,5161.99,0.00014515,2]
[398497959,1765752714499,155.44780109,0.00013604,2]
[398497960,1765752733950,500.0,0.00013273,2]
[398497963,1765752802660,150.0,6.959e-05,2]
[398497964,1765752803093,150.0,7.29e-05,2]
[398497965,1765752803531,150.0,7.622e-05,2]
[398497966,1765752803960,150.0,7.953e-05,2]
[398497967,1765752804373,150.0,8.285e-05,2]
[398497968,1765752833440,3432.57219891,0.00014515,2]
[398497971,1765752845178,5000.0,0.0001451,2]
[398497972,1765752850107,-1567.42780109,0.00014515,2]
[398497973,1765752856318,5000.0,0.00014515,2]
[398497974,1765752866456,1865.15439782,0.00014515,2]
[398497975,1765752866482,3134.84560218,0.00014515,2]
[398497976,1765752874517,5000.0,0.00014515,2]
[398497977,1765752882852,1865.16439782,0.00014515,2]
[398497978,1765752882875,3134.83560218,0.00014515,2]
[398497980,1765752890911,5000.0,0.00014515,2]
[398497981,1765752898911,1865.17439782,0.00014515,2]
[398497982,1765752898937,3134.82560218,0.00014515,2]
[398497983,1765752904134,500.0,0.00013699,2]
[398497984,1765752904215,1000.0,0.00014247,2]
[398497985,1765752906898,5000.0,0.00014515,2]
[398497986,1765752914647,365.18439782,0.00014515,2]
[398497987,1765752914672,4634.81560218,0.00014515,2]
[398497990,1765752922695,5000.0,0.00014515,2]
[398497991,1765752930476,365.19439782,0.00014515,2]
[398497992,1765752930504,4634.80560218,0.00014515,2]
[398497997,1765752938546,5000.0,0.00014515,2]
[398497998,1765752940291,365.20439782,0.0001418,2]
[398497999,1765752940319,634.79560218,0.0001418,2]
[398498000,1765752946407,5000.0,0.00014515,2]
[398498002,1765752954406,4365.21439782,0.00014515,2]
[398498003,1765752954435,634.78560218,0.00014515,2]
[398498004,1765752962145,5000.0,0.00014515,2]
[398498005,1765752970109,4365.22439782,0.00014515,2]
[398498006,1765752970135,634.77560218,0.00014515,2]
[398498007,1765752977851,5000.0,0.00014515,2]
[398498008,1765752985902,4365.23439782,0.00014515,2]
[398498009,1765752985929,634.76560218,0.00014515,2]
[398498011,1765752994716,5000.0,0.00014515,2]
[398498012,1765753003255,4365.24439782,0.00014515,2]
[398498013,1765753011627,5000.0,0.00014509,2]
[398498017,1765753018353,-634.75560218,0.00014515,2]
[398498018,1765753020164,5000.0,0.00014509,2]
[398498020,1765753023933,500.0,0.00013699,2]
[398498021,1765753024177,1000.0,0.00014247,2]
[398498022,1765753027909,2230.49879564,0.00014515,2]
[398498023,1765753027934,2769.50120436,0.00014515,2]
[398498024,1765753035954,5000.0,0.00014515,2]
[398498025,1765753043854,2230.50879564,0.00014515,2]
[398498026,1765753043879,2769.49120436,0.00014515,2]
[398498027,1765753050890,2441.0,0.00014515,2]
[398498028,1765753051777,4789.51879564,0.00014515,2]
[398498029,1765753051802,210.48120436,0.00014515,2]
[398498032,1765753060413,5000.0,0.00014515,2]
[398498035,1765753084914,4789.52879564,0.00014515,2]
[398498036,1765753084940,210.47120436,0.00014515,2]
[398498037,1765753093471,5000.0,0.00014515,2]
[398498038,1765753101235,4789.53879564,0.00014515,2]
[398498039,1765753101260,210.46120436,0.00014515,2]
[398498040,1765753109738,5000.0,0.00014515,2]
[398498041,1765753118154,4789.54879564,0.00014515,2]
[398498042,1765753118179,210.45120436,0.00014515,2]
[398498043,1765753126686,5000.0,0.00014515,2]
[398498044,1765753135064,4789.55879564,0.00014515,2]
[398498045,1765753135088,210.44120436,0.00014515,2]
[398498046,1765753143185,5000.0,0.00014515,2]
[398498047,1765753151123,4789.56879564,0.00014515,2]
[398498048,1765753151153,210.43120436,0.00014515,2]
[398498049,1765753159109,5000.0,0.00014515,2]
[398498050,1765753166910,4789.57879564,0.00014515,2]
[398498051,1765753166935,210.42120436,0.00014515,2]
[398498052,1765753174931,5000.0,0.00014515,2]
[398498053,1765753182730,4789.58879564,0.00014515,2]
[398498054,1765753182759,210.41120436,0.00014515,2]
[398498055,1765753190536,5000.0,0.00014515,2]
[398498057,1765753198573,4789.59879564,0.00014515,2]
[398498058,1765753204014,-210.40120436,0.00014515,2]
[398498059,1765753204410,628.0,0.00014515,2]
[398498060,1765753206648,5000.0,0.00014515,2]
[398498061,1765753207986,500.0,0.00013699,2]
[398498062,1765753208914,1000.0,0.00014247,2]
[398498063,1765753214910,2451.20759128,0.00014515,2]
[398498064,1765753214936,2548.79240872,0.00014515,2]
[398498065,1765753222701,5000.0,0.00014515,2]
[398498066,1765753230832,2451.21759128,0.00014515,2]
[398498067,1765753230856,2548.78240872,0.00014515,2]
[398498068,1765753239404,5000.0,0.00014515,2]
[398498069,1765753246722,2451.22759128,0.00014515,2]
[398498070,1765753246750,2548.77240872,0.00014515,2]
[398498071,1765753256021,5000.0,0.00014452,2]
[398498072,1765753264210,5000.0,0.00014452,2]
[398498073,1765753273041,0.01,0.00014452,2]
[398498077,1765753281057,5000.0,0.00014362,2]
[398498078,1765753282117,-4999.99,0.00014452,2]
[398498079,1765753289106,0.03,0.00014452,2]
[398498080,1765753289138,4999.97,0.00014452,2]
[398498081,1765753297595,5000.0,0.00014452,2]
[398498084,1765753313263,-5000.0,0.00014506,2]
[398498085,1765753313811,0.01,0.00014361,2]
[398498086,1765753313868,-4999.99,0.00014361,2]
[398498087,1765753321194,0.03,0.00014506,2]
[398498088,1765753321218,4875.56165705,0.00014506,2]
[398498089,1765753327496,500.0,0.00013699,2]
[398498090,1765753327552,1000.0,0.00014247,2]
[398498091,1765753329224,5000.0,0.00014506,2]
[398498092,1765753337149,5000.0,0.00014506,2]
[398498093,1765753375288,-5000.0,0.00014427,2]
[398498094,1765753384268,0.01,0.00014427,2]
[398498095,1765753384293,4999.99,0.00014427,2]
[398498098,1765753447644,500.0,0.00013699,2]
[398498099,1765753452765,-1000.0,0.00014247,2]
[398498100,1765753480192,2549.70369681,0.00014247,2]
[398498101,1765753486448,273.4299464,0.00014132,2]
[398498112,1765753546691,-5000.0,0.00014427,2]
[398498114,1765753552467,0.01,0.00014427,2]
[398498115,1765753552493,4999.99,0.00014427,2]
[398498116,1765753568152,1000.0,0.00014247,2]
[398498117,1765753568302,500.0,0.00013699,2]
[398498118,1765753575548,5000.0,0.00014427,2]
[398498119,1765753608819,-5000.0,0.00014427,2]
[398498120,1765753619423,0.01,0.00014427,2]
[398498121,1765753619449,4999.99,0.00014427,2]
[398498122,1765753641530,5000.0,0.00014427,2]
[398498123,1765753683839,229.51,9.99e-05,2]
[398498124,1765753687164,500.0,0.00013699,2]
[398498125,1765753701857,-1000.0,0.00014247,2]
[398498126,1765753756890,5000.0,0.00014247,2]
[398498127,1765753778893,3000.01,0.00014247,2]
[398498128,1765753778918,1999.99,0.00014247,2]
[398498129,1765753810932,-300.0,0.00014282,2]
[398498130,1765753810965,-4400.01,0.00014283,2]
[398498131,1765753815109,500.0,0.00013699,2]
[398498132,1765753816977,-1000.0,0.00014247,2]
[398498133,1765753817011,-599.99,0.00014283,2]
[398498134,1765753817043,-624.0,0.00014283,2]
[398498135,1765753817076,-552.03,0.00014427,2]
[398498136,1765753823514,-5000.0,0.00014283,2]
[398498180,1765753832543,-1627.27025978,0.00014427,2]
[398498183,1765753832563,-2820.69974022,0.00014427,2]
[398498185,1765753832572,-251.30634393,0.00014647,2]
[398498187,1765753832583,-500.0,0.00014789,2]
[398498189,1765753832592,-1500.0,0.00014795,2]
[398498191,1765753832602,-300.0,0.0001493,2]
[398498193,1765753832611,-8963.6982521,0.00014932,2]
[398498195,1765753832620,-649.4240632,0.0001496,2]
[398498197,1765753832629,-500.0,0.00015,30]
[398498199,1765753832638,-800.0,0.00015068,2]
[398498201,1765753832647,-500.0,0.00015155,2]
[398498203,1765753832657,-500.0,0.00015155,2]
[398498205,1765753832666,-500.0,0.00015155,2]
[398498207,1765753832675,-574.12855637,0.00015155,2]
[398498209,1765753832684,-500.0,0.00015155,2]
[398498211,1765753832693,-500.0,0.00015155,2]
[398498213,1765753832702,-500.0,0.00015155,2]
[398498215,1765753832711,-500.0,0.00015155,2]
[398498217,1765753832721,-500.0,0.00015155,2]
[398498219,1765753832730,-500.0,0.00015155,2]
[398498221,1765753832739,-500.0,0.00015155,2]
[398498223,1765753832748,-250.0,0.00015155,2]
[398498225,1765753832757,-500.0,0.00015155,2]
[398498227,1765753832767,-250.0,0.00015155,2]
[398498229,1765753832776,-250.0,0.00015155,2]
[398498231,1765753832786,-250.0,0.00015155,2]
[398498233,1765753832794,-250.0,0.00015155,2]
[398498235,1765753832803,-250.0,0.00015155,2]
[398498237,1765753832812,-250.0,0.00015155,2]
[398498239,1765753832821,-250.0,0.00015155,2]
[398498241,1765753832830,-250.0,0.00015155,2]
[398498243,1765753832839,-250.0,0.00015155,2]
[398498245,1765753832848,-250.0,0.00015155,2]
[398498247,1765753832857,-250.0,0.00015155,2]
[398498249,1765753832867,-249.71966764,0.00015155,2]
[398498251,1765753832876,-385.27596722,0.00015163,2]
[398498253,1765753832885,-69507.16429793,0.00015164,2]
[398498344,1765753838561,-748.8671078,0.00014781,2]
[398498389,1765753840707,-453.0,0.00014781,2]
[398498392,1765753840724,-3798.1328922,0.00014781,2]
[398498395,1765753840736,-450.15916011,0.0001493,2]
[398498397,1765753840748,-500.0,0.0001493,2]
[398498399,1765753840760,-500.0,0.0001493,2]
[398498401,1765753840772,-500.0,0.0001493,2]
[398498404,1765753840785,-500.0,0.0001493,2]
[398498406,1765753840797,-500.0,0.0001493,2]
[398498408,1765753840808,-500.0,0.0001493,2]
[398498409,1765753840821,-500.0,0.0001493,2]
[398498410,1765753840832,-500.0,0.0001493,2]
[398498411,1765753840844,-400.0,0.0001493,2]
[398498412,1765753840856,-500.0,0.0001493,2]
[398498414,1765753840868,-500.0,0.0001493,2]
[398498415,1765753840880,-342.0,0.0001493,2]
[398498416,1765753840892,-500.0,0.0001493,2]
[398498417,1765753840904,-500.0,0.0001493,2]
[398498418,1765753840916,-513.19302727,0.0001493,2]
[398498419,1765753840927,-500.0,0.0001493,2]
[398498420,1765753840940,-500.0,0.0001493,2]
[398498421,1765753840951,-500.0,0.0001493,2]
[398498422,1765753840964,-500.0,0.0001493,2]
[398498423,1765753840977,-500.0,0.0001493,2]
[398498424,1765753840990,-500.0,0.0001493,2]
[398498425,1765753841001,-500.0,0.0001493,2]
[398498426,1765753841013,-500.0,0.0001493,2]
[398498427,1765753841025,-500.0,0.0001493,2]
[398498428,1765753841038,-135.71492042,0.0001493,2]
[398498429,1765753841058,-250.77106545,0.0001493,2]
[398498430,1765753841073,-113.51401413,0.0001493,2]
[398498431,1765753841085,-500.0,0.0001493,2]
[398498432,1765753841097,-500.0,0.0001493,2]
[398498433,1765753841110,-500.0,0.0001493,2]
[398498434,1765753841122,-500.0,0.0001493,2]
[398498435,1765753841134,-500.0,0.0001493,2]
[398498436,1765753841147,-500.0,0.0001493,2]
[398498437,1765753841158,-513.59867985,0.0001493,2]
[398498438,1765753841170,-500.0,0.0001493,2]
[398498439,1765753841182,-471.79307072,0.0001493,2]
[398498440,1765753841195,-500.0,0.0001493,2]
[398498441,1765753841207,-1001.0,0.00015155,2]
[398498442,1765753841219,-41976.58577815,0.00015164,2]
[398498453,1765753843507,-2439.68728602,0.00015164,2]
[398498454,1765753843518,-48225.35056969,0.00015164,2]
[398498455,1765753843529,-417.55037667,0.00015164,2]
[398498463,1765753846915,-302.0,0.00015013,2]
[398498464,1765753848043,-561.00000001,0.00015013,2]
[398498465,1765753872115,500.0,0.00013699,2]
[398498466,1765753873059,500.0,0.00013699,2]
[398498467,1765753874945,500.00629522,0.00013699,2]
[398498468,1765753875002,233.26274353,0.00013591,2]
[398498469,1765753875459,500.0,0.00013699,2]
[398498470,1765753878816,500.0,0.00013699,2]
[398498471,1765753880470,163.19892177,0.00013973,2]
[398498472,1765753883170,500.0,0.00013273,2]
[398498476,1765753927373,500.0,0.00013699,2]
[398498477,1765753930819,500.0,0.00013699,2]
[398498478,1765753931873,198.00196637,0.00013699,2]
[398498479,1765753933084,300.0,0.00013673,2]
[398498480,1765753933253,500.0,0.00013699,2]
[398498481,1765753933714,500.0,0.00013699,2]
[398498482,1765753934169,500.0,0.00013273,2]
[398498483,1765753934239,1000.0,0.00013821,2]
[398498484,1765753983390,491.27843286,0.00013273,2]
[398498485,1765753985168,500.0,0.00013273,2]
[398498486,1765753985495,1000.0,0.00013821,2]
[398498487,1765753986922,202.53362762,0.00013271,2]
[398498488,1765753992411,202.71674871,0.00013271,2]
[398498489,1765753994580,209.01126392,0.00013699,2]
[398498490,1765753994606,290.98873608,0.00013699,2]
[398498491,1765753997928,500.0,0.00013699,2]
[398498492,1765753998223,500.0,0.00013273,2]
[398498493,1765753998850,500.0,0.00013699,2]
[398498494,1765754004234,1824.057649,0.00013957,2]
[398498514,1765754038953,5000.0,0.00014057,2]
[398498515,1765754047740,500.0,0.00013699,2]
[398498516,1765754052990,500.0,0.00013273,2]
[398498517,1765754053058,384.96361492,0.00013821,2]
[398498518,1765754053083,615.03638508,0.00013821,2]
[398498519,1765754054114,500.0,0.00013699,2]
[398498520,1765754054694,500.0,0.00013273,2]
[398498521,1765754054748,1000.0,0.00013821,2]
[398498522,1765754054805,5000.0,0.00014057,2]
[398498523,1765754055778,538.82198234,0.00013699,2]
[398498524,1765754062640,1846.15163258,0.00014057,2]
[398498525,1765754062668,3153.84836742,0.00014057,2]
[398498526,1765754077925,5000.0,0.00014057,2]
[398498527,1765754085581,1846.16163258,0.00014057,2]
[398498528,1765754085613,3153.83836742,0.00014057,2]
[398498529,1765754086787,150.0,7.184e-05,2]
[398498530,1765754087182,150.0,7.526e-05,2]
[398498531,1765754088032,150.0,7.868e-05,2]
[398498532,1765754088402,150.0,8.21e-05,2]
[398498533,1765754088667,150.0,8.552e-05,2]
[398498534,1765754088831,150.0,8.894e-05,2]
[398498535,1765754089239,154.11,9.236e-05,2]
[398498536,1765754089654,176.13,9.578e-05,2]
[398498537,1765754090148,198.15,9.92e-05,2]
[398498538,1765754090620,220.16,0.00010262,2]
[398498539,1765754101350,5000.0,0.00014057,2]
[398498540,1765754109061,197.62163258,0.00014057,2]
[398498541,1765754109088,4802.37836742,0.00014057,2]
[398498542,1765754110986,500.0,0.00013273,2]
[398498543,1765754111043,1000.0,0.00013821,2]
[398498544,1765754121842,1000.0,0.00013821,2]
[398498545,1765754121902,500.0,0.00013273,2]
[398498546,1765754124779,2197.63163258,0.00014057,2]
[398498547,1765754124806,2802.36836742,0.00014057,2]
[398498548,1765754127335,500.0,0.00013699,2]
[398498549,1765754127462,500.0,0.00013273,2]
[398498550,1765754133070,5000.0,0.00014057,2]
[398498551,1765754148933,1197.64163258,0.00014057,2]
[398498552,1765754148960,3802.35836742,0.00014057,2]
[398498553,1765754156722,5000.0,0.00014057,2]
[398498554,1765754164968,500.0,0.00013699,2]
[398498555,1765754165672,500.0,0.00013273,2]
[398498556,1765754165737,197.65163258,0.00013821,2]
[398498557,1765754165768,802.34836742,0.00013821,2]
[398498558,1765754166954,500.0,0.00013699,2]
[398498559,1765754170323,500.0,0.00013699,2]
[398498560,1765754170389,500.0,0.00013273,2]
[398498561,1765754171954,5000.0,0.00014057,2]
[398498562,1765754172883,500.0,0.00013273,2]
[398498563,1765754172963,300.0,0.00013673,2]
[398498564,1765754173004,500.0,0.00013273,2]
[398498565,1765754173247,500.0,0.00013273,2]
[398498566,1765754173301,897.66163258,0.00013821,2]
[398498567,1765754173328,102.33836742,0.00013821,2]
[398498568,1765754173642,500.0,0.00013699,2]
[398498569,1765754173789,500.0,0.00013699,2]
[398498570,1765754174691,500.0,0.00013273,2]
[398498571,1765754174728,1000.0,0.00013821,2]
[398498572,1765754174852,500.0,0.00013699,2]
[398498573,1765754179923,5000.0,0.00014057,2]
[398498574,1765754194991,1897.67163258,0.00014057,2]
[398498575,1765754203324,5000.0,0.0001405,2]
[398498576,1765754206633,-3102.32836742,0.00014057,2]
[398498577,1765754218819,3795.35326516,0.00014057,2]
[398498578,1765754218850,1204.64673484,0.00014057,2]
[398498579,1765754224156,500.0,0.00013699,2]
[398498580,1765754226195,5000.0,0.00014057,2]
[398498581,1765754230147,500.0,0.00013273,2]
[398498582,1765754230201,1000.0,0.00013821,2]
[398498583,1765754240474,500.0,0.00013273,2]
[398498584,1765754240801,1000.0,0.00013821,2]
[398498585,1765754242223,295.36326516,0.00014057,2]
[398498586,1765754242248,4704.63673484,0.00014057,2]